[Event "FIDE WSTC-50-65 2022"]
[Site "Acqui Terme"]
[Date "2022.06.22"]
[Round "3.4"]
[White "Arkell, Keith C"]
[Black "Arnason, Jon L"]
[Result "1/2-1/2"]
[ECO "D27"]
[WhiteElo "2367"]
[BlackElo "2412"]
[Annotator "TA"]
[PlyCount "42"]
[EventDate "2022.06.20"]
[EventType "team-tourn"]
[EventCountry "ITA"]
[SourceTitle "playchess.com"]
[Source "ChessBase"]
[SourceQuality "1"]
[TimeControl "40/5400+30:1800+30"]

{[%evp 23,28,7,14,5,7,0,0]} 1. d4 {[%emt 0:01:00]} d5 {[%emt 0:01:00]} 2. Nf3 {[%emt 0:00:00]} Nf6 {[%emt 0:00:00]} 3. c4 {[%emt 0:00:00]} dxc4 {[%emt 0:00:00]} 4. e3 {[%emt 0:00:00]} a6 {[%emt 0:00:30]} 5. Bxc4 {[%emt 0:00:00]} e6 {[%emt 0:00:30]} 6. O-O {[%emt 0:01:30]} c5 {[%emt 0:00:00]} 7. dxc5 {[%emt 0:01:30]} Bxc5 {[%emt 0:02:00]} 8. Qxd8+ {[%emt 0:00:30]} Kxd8 {[%emt 0:00:00]} 9. a3 {[%emt 0:00:00]} Ke7 {[%emt 0:02:00]} 10. b4 {[%emt 0:00:00]} Bd6 {[%emt 0:00:30]} 11. Nbd2 {[%emt 0:02:30]} b5 {[%emt 0:06:30]} 12. Be2 {[%emt 0:00:00]} Bb7 {[%emt 0:00:30] The position is equal.} 13. Bb2 {[%emt 0:00:00] D27: Queen's Gambit Accepted: Classical main line: 7 e4!? and 7 a4.} Rc8 {[%emt 0:01:30]} 14. Rfc1 {[%emt 0:00:30]} Nbd7 {[%emt 0:01:30] [#] A rather calm draw.} {Predecessor:} 15. Nb3 $146 Bd5 16. Na5 Nb6 17. Ne5 Na4 18. Nec6+ Kd7 19. Ne5+ Ke7 20. Nec6+ Kd7 21. Ne5+ Ke7 {½-½ (22) Velicka,P (2423)-Haba,P (2445) Austria 2018} 1/2-1/2

[Event "FIDE WSTC-50-65 2022"]
[Site "Acqui Terme"]
[Date "2022.06.22"]
[Round "3.5"]
[White "Kaidanov, Gregory"]
[Black "David, Alberto"]
[Result "1/2-1/2"]
[ECO "B85"]
[WhiteElo "2556"]
[BlackElo "2520"]
[Annotator "TA"]
[PlyCount "82"]
[EventDate "2022.06.20"]
[EventType "team-tourn"]
[EventCountry "ITA"]
[SourceTitle "playchess.com"]
[Source "ChessBase"]
[SourceQuality "1"]
[TimeControl "40/5400+30:1800+30"]

{[%evp 27,82,14,1,0,25,13,33,0,0,0,0,0,1,0,0,16,11,-7,47,50,68,72,54,50,68,39,40,35,73,57,59,57,79,42,49,40,72,24,93,64,42,25,30,16,42,22,32,0,58,50,60,32,54,0,83,0,47]} 1. e4 {[%emt 0:01:00]} c5 {[%emt 0:01:00]} 2. Nf3 {[%emt 0:00:00]} e6 {[%emt 0:00:30]} 3. d4 {[%emt 0:00:00]} cxd4 {[%emt 0:00:30]} 4. Nxd4 {[%emt 0:00:00]} Nc6 {[%emt 0:00:00]} 5. Nc3 {[%emt 0:01:00]} Qc7 {[%emt 0:01:00]} 6. Be2 {[%emt 0:00:30]} a6 {[%emt 0:00:30]} 7. O-O {[%emt 0:00:30]} Nf6 {[%emt 0:00:00]} 8. Be3 {[%emt 0:00:30]} Be7 {[%emt 0:00:00]} 9. f4 {[%emt 0:00:30]} d6 {[%emt 0:00:30]} 10. Kh1 {[%emt 0:01:30]} O-O {[%emt 0:00:30]} 11. Qe1 {[%emt 0:00:30]} Nxd4 {[%emt 0:01:30]} 12. Bxd4 {[%emt 0:00:30]} b5 {[%emt 0:00:30]} 13. a3 {[%emt 0:00:30]} Bb7 {[%emt 0:00:30]} 14. Qg3 {[%emt 0:00:30]} Rad8 {[%emt 0:14:30]} 15. Rae1 {[%emt 0:00:30] B85: Sicilian Scheveningen: 6 Be2 a6, lines with early Be3.} Rd7 {[%emt 0:17:30]} 16. Bd3 {[%emt 0:00:30]} Qd8 {[%emt 0:01:30] [#]} 17. f5 $146 {[%emt 0:12:30] White is slightly better.} ({Predecessor:} 17. Re2 Bc6 18. Rf3 g6 19. Qh3 d5 20. exd5 Bxd5 21. Nxd5 Rxd5 22. Be5 Re8 23. Rf1 {½-½ (47) Cornette,M (2609)-Bauer,C (2650) Agen 2017}) 17... e5 {[%emt 0:01:30]} 18. Be3 {[%emt 0:00:30]} Kh8 {[%emt 0:01:30]} 19. Qh3 {[%emt 0:02:30]} Re8 {[%emt 0:02:30]} 20. Bg5 {[%emt 0:03:30]} Ng8 {[%emt 0:15:30]} 21. Bd2 {[%emt 0:01:30]} Nf6 {[%emt 0:03:30]} 22. a4 {[%emt 0:02:30]} b4 {[%emt 0:12:30]} (22... bxa4 $11 23. Nxa4 d5 24. exd5 e4) 23. Nd5 $1 $14 {[%emt 0:07:30]} Bxd5 {[%emt 0:03:30]} 24. exd5 {[%emt 0:01:30]} Qa5 {[%emt 0:00:30]} 25. Bc4 $1 {[%emt 0:12:30] g4 is the strong threat.} Rc7 {[%emt 0:00:30]} 26. Qd3 {[%emt 0:06:30]} (26. b3 $5 {[%cal Rg2g4]}) 26... e4 {[%emt 0:13:37]} 27. Qd4 {[%emt 0:03:30][%cal Og2g4]} Bd8 {[%emt 0:00:31]} 28. Bb3 {[%emt 0:03:30]} Rb7 {[%emt 0:00:04]} 29. Qc4 {[%emt 0:04:30][%cal Og2g4]} h6 {[%emt 0:00:12]} 30. Re2 {[%emt 0:07:30][%cal Og2g4]} Kh7 {[%emt 0:00:04]} 31. g3 {[%emt 0:04:30]} Ree7 {[%emt 0:02:33]} 32. Bf4 {[%emt 0:03:30]} (32. g4 $16) 32... Rec7 {[%emt 0:01:36]} (32... Rbc7 $1 $11 33. Qd4 Rcd7) 33. Qd4 $16 {[%emt 0:00:30] White is more active.} Rd7 {[%emt 0:00:12]} 34. Bd2 {[%emt 0:04:35]} Re7 {[%emt 0:00:23]} 35. Kg2 {[%emt 0:04:18]} Rec7 {[%emt 0:02:23]} 36. Bf4 {[%emt 0:01:03]} Rd7 $1 {[%emt 0:00:08]} 37. Bd2 {[%emt 0:00:45]} Rb8 {[%emt 0:01:38]} ({Black should try} 37... Rdc7 $11) 38. h3 $14 {[%emt 0:00:32]} Rc7 {[%emt 0:01:28]} 39. Bf4 {[%emt 0:03:02]} Rd7 $1 {[%emt 0:00:04]} 40. Bd2 {[%emt 0:00:00]} Rc7 $1 {[%emt 0:00:00]} 41. Bf4 {[%emt 0:00:45]} Rd7 $1 {[%emt 0:15:35] Weighted Error Value: White=0.16 (very precise) /Black=0.17 (very precise)} 1/2-1/2

[Event "FIDE WSTC-50-65 2022"]
[Site "Acqui Terme"]
[Date "2022.06.22"]
[Round "3.6"]
[White "Godena, Michele"]
[Black "Shabalov, Alexander"]
[Result "1/2-1/2"]
[ECO "B12"]
[WhiteElo "2478"]
[BlackElo "2504"]
[Annotator "RC"]
[PlyCount "60"]
[EventDate "2022.06.20"]
[EventType "team-tourn"]
[EventCountry "ITA"]
[SourceTitle "playchess.com"]
[Source "ChessBase"]
[SourceQuality "1"]
[TimeControl "40/5400+30:1800+30"]

1. e4 {[%emt 0:01:00]} c6 {[%emt 0:04:00]} 2. d4 {[%emt 0:00:30]} d5 {[%emt 0:01:30]} 3. Nd2 {[%emt 0:00:30]} Qc7 {[%emt 0:01:30]} 4. c3 {[%emt 0:03:30]} dxe4 {[%emt 0:03:30]} 5. Nxe4 {[%emt 0:00:30]} Bf5 {[%emt 0:00:30]} 6. Bd3 {[%emt 0:08:30]} e6 {[%emt 0:03:30]} 7. Nf3 {[%emt 0:05:30]} Nd7 {[%emt 0:02:30]} 8. g3 {[%emt 0:09:30]} Bxe4 {[%emt 0:05:30]} 9. Bxe4 {[%emt 0:00:30]} Ngf6 {[%emt 0:00:00]} 10. Bc2 {[%emt 0:00:30]} Bd6 {[%emt 0:00:00]} 11. Qe2 {[%emt 0:02:30]} O-O {[%emt 0:01:30]} 12. O-O {[%emt 0:01:30]} Rfe8 {[%emt 0:00:30]} 13. Bg5 {[%emt 0:05:30]} h6 {[%emt 0:08:30]} 14. Bd2 {[%emt 0:01:30]} c5 {[%emt 0:00:30]} 15. Rad1 {[%emt 0:10:30]} a6 {[%emt 0:04:30]} 16. Rfe1 {[%emt 0:10:30]} Rad8 {[%emt 0:06:30]} 17. Bb3 {[%emt 0:10:30]} Qb6 {[%emt 0:08:30]} 18. Ne5 {[%emt 0:02:30]} Bf8 {[%emt 0:04:30]} 19. Nxd7 {[%emt 0:06:50]} Nxd7 {[%emt 0:01:30]} 20. Be3 {[%emt 0:00:08]} Qc7 {[%emt 0:09:30]} 21. d5 {[%emt 0:03:32]} exd5 {[%emt 0:03:30]} 22. Rxd5 {[%emt 0:03:13]} b5 {[%emt 0:05:30]} 23. Red1 {[%emt 0:07:30]} Nf6 {[%emt 0:04:51]} 24. Rxd8 {[%emt 0:01:01]} Rxd8 {[%emt 0:00:09]} 25. Rxd8 {[%emt 0:01:51]} Qxd8 {[%emt 0:00:30]} 26. Qd1 {[%emt 0:00:21]} Qc8 {[%emt 0:08:24]} 27. Qf3 {[%emt 0:00:47]} Be7 {[%emt 0:01:01]} 28. h4 {[%emt 0:01:45]} Kf8 {[%emt 0:02:37]} 29. Kf1 {[%emt 0:00:37]} c4 {[%emt 0:01:13]} 30. Bc2 {[%emt 0:00:07]} Ng4 {[%emt 0:00:15]} 1/2-1/2

[Event "FIDE WSTC-50-65 2022"]
[Site "Acqui Terme"]
[Date "2022.06.22"]
[Round "3.7"]
[White "Ehlvest, Jaan"]
[Black "Garcia Palermo, Carlos Horacio"]
[Result "1-0"]
[ECO "B12"]
[WhiteElo "2517"]
[BlackElo "2415"]
[Annotator "TA"]
[PlyCount "49"]
[EventDate "2022.06.20"]
[EventType "team-tourn"]
[EventCountry "ITA"]
[SourceTitle "playchess.com"]
[Source "ChessBase"]
[SourceQuality "1"]
[TimeControl "40/5400+30:1800+30"]

{[%evp 12,49,7,12,21,16,33,24,29,29,39,29,53,43,99,85,100,104,115,89,270,139,222,236,252,252,252,247,258,256,266,233,259,215,223,213,397,398,799,610]} 1. e4 {[%emt 0:01:00]} c6 {[%emt 0:01:00]} 2. d4 {[%emt 0:00:00]} d5 {[%emt 0:00:30]} 3. e5 {[%emt 0:00:00]} Bf5 {[%emt 0:00:00]} 4. h4 {[%emt 0:00:00]} h5 {[%emt 0:00:00]} 5. Bd3 {[%emt 0:00:00]} Bxd3 {[%emt 0:02:30]} 6. Qxd3 {[%emt 0:00:30]} e6 {[%emt 0:00:30]} 7. Nf3 {[%emt 0:00:00]} Ne7 {[%emt 0:02:30][%cal Oc6c5] B12: Caro-Kann: Advance Variation.} 8. Bg5 {[%emt 0:14:00]} Qd7 {[%emt 0:01:30] [#]} 9. Nbd2 $146 {[%emt 0:07:30][%cal Bb1d2,Bd2c4,Bc4d6][%mdl 32]} ({Predecessor:} 9. O-O Nf5 10. c4 Be7 11. Bxe7 Qxe7 12. g3 dxc4 13. Qxc4 Nd7 14. Nc3 Nb6 15. Qb3 {0-1 (48) Tancsa,T (2157)-Lyell,M (2198) Budapest 2019}) 9... Nf5 {[%emt 0:02:30] White has an edge.} 10. O-O {[%emt 0:02:30]} Na6 {[%emt 0:12:30]} 11. Rfd1 {[%emt 0:09:30]} Rc8 {[%emt 0:19:30]} 12. a3 {[%emt 0:17:30]} c5 {[%emt 0:08:30] [#]} ({Black should try} 12... Be7 $14) 13. c4 $1 $16 {[%emt 0:02:30]} dxc4 {[%emt 0:26:56]} 14. Nxc4 {[%emt 0:01:30]} cxd4 {[%emt 0:01:57]} 15. b4 {[%emt 0:04:30] Inhibits Nc5. White is more active.} (15. Nxd4 Nxd4 16. Qxd4 Qxd4 17. Rxd4 Bc5) 15... Be7 $2 {[%emt 0:10:15]} (15... Nb8 $16 {might work better.}) 16. Bxe7 {[%emt 0:13:30]} (16. Nxd4 $18 Nxd4 17. Bxe7 (17. Qxd4 Qxd4 18. Rxd4 f6 $16)) 16... Kxe7 {[%emt 0:00:10] [#]} (16... Qxe7 $16 17. Nxd4 Rd8) 17. Nd6 $1 $18 {[%emt 0:00:00]} (17. Nxd4 Qxd4 18. Qxd4 Nxd4 19. Rxd4 f6 $14) 17... Nxd6 {[%emt 0:00:09]} 18. Qxd4 {[%emt 0:00:00][%mdl 64] Pin} Rhd8 {[%emt 0:00:22] White must now prevent ...Nf5.} 19. Qf4 {[%emt 0:02:30]} ({Weaker is} 19. exd6+ Qxd6 20. Qxg7 Qf4 21. Rxd8 (21. Ne5 Qf6 $14) 21... Rxd8 $16) ({Don't do} 19. Qxa7 $6 Qc7 $16) 19... Qc7 {[%emt 0:03:44] Strongly threatening ...Nf5.} 20. exd6+ {[%emt 0:04:11]} Rxd6 {[%emt 0:00:05]} 21. Qg5+ {[%emt 0:00:08]} ({But not} 21. Ne5 Rxd1+ 22. Rxd1 Ke8 $18) 21... Kf8 {[%emt 0:01:24]} 22. Qxh5 {[%emt 0:00:41] Threatens to win with Rxd6.} Rxd1+ {[%emt 0:02:28]} 23. Rxd1 {[%emt 0:00:08]} f6 {[%emt 0:00:10] Inhibits Ng5.} (23... g6 24. Qh6+ Ke8 25. Qh8+ Ke7) 24. Nd4 {[%emt 0:02:24]} Qc4 {[%emt 0:01:53]} (24... Kg8 25. Nxe6 Qf7) 25. Nb5 {[%emt 0:01:39] White took control after the opening.  Weighted Error Value: White=0.08 (flawless) /Black=0.43} 1-0

[Event "FIDE WSTC-50-65 2022"]
[Site "Acqui Terme"]
[Date "2022.06.22"]
[Round "3.8"]
[White "Borgo, Giulio"]
[Black "Sokolin, Leonid"]
[Result "1/2-1/2"]
[ECO "B31"]
[WhiteElo "2353"]
[BlackElo "2464"]
[Annotator "TA"]
[PlyCount "66"]
[EventDate "2022.06.20"]
[EventType "team-tourn"]
[EventCountry "ITA"]
[SourceTitle "playchess.com"]
[Source "ChessBase"]
[SourceQuality "1"]
[TimeControl "40/5400+30:1800+30"]

{[%evp 23,66,7,13,16,53,52,54,50,45,41,45,50,43,50,43,50,48,55,106,104,103,96,102,97,86,109,108,105,120,81,119,98,108,96,99,108,104,99,100,87,78,33,36,35,31]} 1. e4 {[%emt 0:04:00]} c5 {[%emt 0:01:00]} 2. Nf3 {[%emt 0:00:30]} Nc6 {[%emt 0:00:00]} 3. Bb5 {[%emt 0:00:30]} g6 {[%emt 0:00:00]} 4. O-O {[%emt 0:00:30]} Bg7 {[%emt 0:00:00]} 5. Re1 {[%emt 0:00:30]} Nf6 {[%emt 0:00:00][%cal Bg8f6,Bf6d5,Bd5c7,Bc7e6][%mdl 32]} 6. e5 {[%emt 0:05:30]} Nd5 {[%emt 0:01:30]} 7. Bxc6 {[%emt 0:04:30]} bxc6 {[%emt 0:02:30]} 8. c4 {[%emt 0:00:30]} Nc7 {[%emt 0:00:00]} 9. d4 {[%emt 0:00:30]} cxd4 {[%emt 0:01:00]} 10. Qxd4 {[%emt 0:00:00]} O-O {[%emt 0:02:30]} 11. Qh4 {[%emt 0:03:00]} Ne6 {[%emt 0:04:30]} 12. Nc3 {[%emt 0:03:30][%cal Bb1c3,Bc3e4,Be4g5,Bg5e6][%mdl 32]} f6 {[%emt 0:04:30]} 13. Ne4 {[%emt 0:00:30] B31: Sicilian: 2...Nc6 3 Bb5 g6.} d6 {[%emt 0:03:30]} 14. exd6 {[%emt 0:13:30]} exd6 {[%emt 0:00:30]} 15. Be3 {[%emt 0:02:30]} f5 {[%emt 0:12:30] Strongly threatening ...Qxh4.} 16. Neg5 $1 {[%emt 0:02:30][%csl Gg5][%cal Rh4h7] Pair of Knights!} h6 {[%emt 0:02:30]} 17. Nxe6 {[%emt 0:00:30]} Qxh4 {[%emt 0:06:30]} (17... Bxe6 $2 18. Bg5 $1 {[%mdl 512]} Qd7 19. Bxh6 $18) 18. Nxh4 {[%emt 0:00:30][%cal Bf3h4,Bh4g6,Bg6f4,Bf4d3][%mdl 32]} Bxe6 {[%emt 0:00:30]} 19. Nxg6 {[%emt 0:05:30]} Rfe8 {[%emt 0:00:30]} 20. Rad1 $36 {[%emt 0:08:30][%mdl 2048] [#] White is more active.} Bxc4 $146 {[%emt 0:19:30] [#]} (20... Bxb2 $14 21. Rxd6 Bxc4) ({Predecessor:} 20... Bxb2 21. Rxd6 Bxc4 22. Rxc6 Bxa2 23. Re2 Rab8 24. h3 Bf7 25. Nh4 f4 26. Bxa7 Rb7 27. Ra6 Rxe2 {0-1 (27) Nichols,S (2351)-Corti,H (2314) LSS email 2021}) 21. b3 $1 $16 {[%emt 0:05:30]} Bd5 {[%emt 0:04:30]} 22. Nf4 {[%emt 0:01:30]} Bf7 {[%emt 0:01:30]} ({Less strong is} 22... Bc3 23. Rf1 $16 (23. Nxd5 cxd5 24. Rf1 f4 $16)) 23. Rxd6 {[%emt 0:04:30]} Be5 {[%emt 0:00:30]} 24. Rdd1 {[%emt 0:00:30][%cal Bd6d1,Bd1c1,Bc1c5][%mdl 32] White is more active.} a5 {[%emt 0:00:30]} 25. Nd3 {[%emt 0:13:30]} Bg7 {[%emt 0:00:30]} 26. Rc1 {[%emt 0:01:35]} Rad8 {[%emt 0:09:30]} 27. Nf4 {[%emt 0:03:39]} Rd6 {[%emt 0:01:30]} 28. Kf1 {[%emt 0:03:36]} a4 {[%emt 0:05:03]} 29. bxa4 {[%emt 0:04:22]} Ra8 {[%emt 0:00:31]} 30. Rc5 {[%emt 0:01:54]} Rxa4 {[%emt 0:00:58]} 31. Rec1 {[%emt 0:02:00] Inhibits Bc4+.} Bxa2 {[%emt 0:03:56]} 32. Rxc6 {[%emt 0:04:37]} Rxc6 {[%emt 0:02:00]} 33. Rxc6 {[%emt 0:00:01]} Bc4+ {[%emt 0:00:10] Weighted Error Value: White=0.07 (flawless) /Black=0.08 (flawless)} 1/2-1/2

[Event "FIDE WSTC-50-65 2022"]
[Site "Acqui Terme"]
[Date "2022.06.22"]
[Round "3.9"]
[White "Nunn, John D M"]
[Black "Meister, Jakob"]
[Result "1/2-1/2"]
[ECO "C24"]
[WhiteElo "2568"]
[BlackElo "2418"]
[Annotator "TA"]
[PlyCount "65"]
[EventDate "2022.06.20"]
[EventType "team-tourn"]
[EventCountry "ITA"]
[SourceTitle "playchess.com"]
[Source "ChessBase"]
[SourceQuality "1"]
[TimeControl "40/5400+30:1800+30"]

{[%evp 17,65,8,5,10,10,6,10,13,51,8,10,9,10,0,11,12,15,14,14,21,20,12,14,16,12,16,22,20,22,22,22,22,22,22,22,22,22,22,22,14,21,4,20,14,12,12,17,12,20,0]} 1. e4 {[%emt 0:01:00]} e5 {[%emt 0:01:00]} 2. Bc4 {[%emt 0:00:00]} Nf6 {[%emt 0:00:00]} 3. d3 {[%emt 0:00:00]} c6 {[%emt 0:00:00]} 4. Nf3 {[%emt 0:00:30]} d5 {[%emt 0:00:30]} 5. Bb3 {[%emt 0:00:00]} Bd6 {[%emt 0:04:30]} 6. Nc3 {[%emt 0:00:00]} dxe4 {[%emt 0:03:30]} 7. Ng5 {[%emt 0:00:30]} O-O {[%emt 0:00:30]} 8. Ncxe4 {[%emt 0:00:30]} Nxe4 {[%emt 0:03:30]} 9. Nxe4 {[%emt 0:00:00]} Bf5 {[%emt 0:10:30]} 10. Qf3 {[%emt 0:09:00] C24: Bishop's Opening: 2...Nf6.} Bxe4 {[%emt 0:00:30]} 11. dxe4 {[%emt 0:01:30]} Nd7 {[%emt 0:01:30]} 12. c3 {[%emt 0:03:30]} Qf6 {[%emt 0:03:30] [#]} 13. Qe2 $146 {[%emt 0:06:30]} ({Predecessor:} 13. Qg4 Nc5 14. Bc2 Qe6 15. Qf3 Qe7 16. h4 a5 17. Bg5 Qe6 18. O-O Be7 19. Be3 {½-½ (47) Reefat,B (2438)-Mohammad,M (2408) Dhaka 2012}) 13... Nc5 {[%emt 0:02:30] The position is equal.} 14. Bc2 {[%emt 0:01:30]} a5 {[%emt 0:02:30]} 15. O-O {[%emt 0:00:30]} Ne6 {[%emt 0:02:30]} 16. Bd2 {[%emt 0:06:30]} Rfd8 {[%emt 0:05:30]} 17. Rad1 {[%emt 0:04:30]} Bc5 {[%emt 0:05:30]} 18. g3 {[%emt 0:01:30]} a4 {[%emt 0:14:30]} 19. Bc1 {[%emt 0:05:30]} b5 {[%emt 0:01:30]} 20. Kg2 {[%emt 0:01:30]} Rxd1 {[%emt 0:01:30]} 21. Rxd1 {[%emt 0:00:30]} Rd8 {[%emt 0:00:30]} 22. Rxd8+ {[%emt 0:02:30]} Qxd8 {[%emt 0:00:30]} 23. b3 {[%emt 0:00:30]} axb3 {[%emt 0:00:30]} 24. Bxb3 {[%emt 0:00:30]} Qd6 {[%emt 0:02:30]} 25. a4 {[%emt 0:02:30]} bxa4 {[%emt 0:02:30]} 26. Bxa4 {[%emt 0:00:30]} h6 {[%emt 0:06:30]} 27. Qc4 {[%emt 0:09:30]} Kf8 {[%emt 0:03:30]} 28. Kf1 {[%emt 0:02:30]} Ke7 {[%emt 0:01:30]} 29. Ke2 {[%emt 0:00:30]} Kd7 {[%emt 0:06:27]} 30. h4 {[%emt 0:08:30]} Kc7 {[%emt 0:03:47]} 31. Bb3 {[%emt 0:11:30]} Bb6 {[%emt 0:03:30]} 32. Kf3 {[%emt 0:01:30]} Nd8 {[%emt 0:01:25] [#] ...Qf6+ is the strong threat.} 33. Ke2 {[%emt 0:00:30] An interesting draw.  Weighted Error Value: White=0.05 (flawless) /Black=0.04 (flawless)} 1/2-1/2

[Event "FIDE WSTC-50-65 2022"]
[Site "Acqui Terme"]
[Date "2022.06.22"]
[Round "3.10"]
[White "Klundt, Klaus"]
[Black "Littlewood, Paul E"]
[Result "1/2-1/2"]
[ECO "C96"]
[WhiteElo "2295"]
[BlackElo "2347"]
[Annotator "TA"]
[PlyCount "63"]
[EventDate "2022.06.20"]
[EventType "team-tourn"]
[EventCountry "ITA"]
[SourceTitle "playchess.com"]
[Source "ChessBase"]
[SourceQuality "1"]
[TimeControl "40/5400+30:1800+30"]

{[%evp 26,63,51,36,75,81,128,81,85,64,59,43,77,48,112,84,129,139,135,130,141,135,156,159,227,94,202,200,197,197,192,155,253,253,252,229,258,226,368,0]} 1. e4 {[%emt 0:01:00]} e5 {[%emt 0:01:00]} 2. Nf3 {[%emt 0:00:00]} Nc6 {[%emt 0:00:00]} 3. Bb5 {[%emt 0:00:00][%cal Bf1b5,Bb5a4,Ba4b3][%mdl 32]} a6 {[%emt 0:00:00]} 4. Ba4 {[%emt 0:00:00]} Nf6 {[%emt 0:00:30]} 5. O-O {[%emt 0:00:00]} Be7 {[%emt 0:00:00]} 6. Re1 {[%emt 0:00:30]} b5 {[%emt 0:00:00]} 7. Bb3 {[%emt 0:00:00]} O-O {[%emt 0:02:30]} 8. c3 {[%emt 0:00:00][%cal Bc2c3,Bc3d4,Bd4d5][%mdl 32]} d6 {[%emt 0:01:30]} 9. h3 {[%emt 0:00:30]} Na5 {[%emt 0:02:30]} 10. Bc2 {[%emt 0:00:30]} c5 {[%emt 0:00:30]} 11. d4 {[%emt 0:00:30]} cxd4 {[%emt 0:01:30]} 12. cxd4 {[%emt 0:00:00]} Bb7 {[%emt 0:00:30] has lost popularity (12...Qc7).} 13. Nbd2 {[%emt 0:02:00]} Rc8 {[%emt 0:02:30]} 14. d5 $1 {[%emt 0:03:30]} Nh5 {[%emt 0:10:30] C96: Closed Ruy Lopez: Chigorin Defence: 11 d4, replies other than 11...Qc7.} 15. Nf1 {[%emt 0:12:30]} Nf4 {[%emt 0:02:30]} ({Better is} 15... Nc4) 16. Ne3 {[%emt 0:01:30]} (16. b3 $142 $1) 16... Nc4 {[%emt 0:08:30] [#] White is better.} 17. Nxc4 $146 {[%emt 0:04:30]} ({Predecessor:} 17. Nf5 Bf6 18. b3 Nb6 19. Ba3 Be7 20. Bb4 g6 21. Nxe7+ Qxe7 22. Rc1 f5 23. Ba5 fxe4 24. Bxe4 Rxc1 25. Qxc1 Nbxd5 {0-1 (37) Stojanovic,S (2050)-Keserovic,M (2209) Belgrade 2014}) 17... bxc4 {[%emt 0:00:30]} 18. b3 {[%emt 0:04:30]} cxb3 {[%emt 0:14:30]} 19. Bxb3 {[%emt 0:01:30]} Kh8 {[%emt 0:04:30]} (19... a5 $14) 20. Rb1 $16 {[%emt 0:04:30]} Ba8 {[%emt 0:08:30]} 21. Bxf4 {[%emt 0:05:30]} exf4 {[%emt 0:00:30]} 22. Qd3 {[%emt 0:00:30]} Qa5 {[%emt 0:01:30]} 23. e5 {[%emt 0:04:30]} dxe5 {[%emt 0:04:30]} 24. Nxe5 {[%emt 0:03:30] d6 is the strong threat.} (24. Rxe5 Qc7 $16) 24... Bd6 {[%emt 0:00:30] [#]} (24... Bb4 $16 25. Re2 (25. Bc2 Rxc2 26. Nxf7+ Rxf7 $17) 25... f6) 25. Qf5 {[%emt 0:03:30]} (25. Bc2 g6 $11) (25. Nc4 $6 Qc5 $16) (25. Nd7 $1 $18 {and the rest is easy.}) 25... Qc7 {[%emt 0:05:30] Against Bc2} (25... Kg8 $16) 26. Rbc1 $40 {[%emt 0:03:30][%mdl 128] White is out for blood.} ({But not} 26. Qxf4 $2 f6 27. Rec1 Bxe5 $19) 26... Qxc1 {[%emt 0:01:30]} 27. Rxc1 {[%emt 0:00:00]} Rxc1+ {[%emt 0:00:00]} 28. Kh2 {[%emt 0:00:00]} f3 {[%emt 0:08:00]} (28... Bxe5 $16 29. Qxe5 f3) 29. g3 $18 {[%emt 0:00:30] Dancing on a razor blade.} Bxe5 {[%emt 0:00:30]} 30. Qxe5 {[%emt 0:00:00]} Rcc8 {[%emt 0:00:30]} 31. Qf5 {[%emt 0:01:00]} Rcd8 {[%emt 0:00:50] [#]} (31... Rce8 $142 32. Bc2 (32. Qxf3 Rd8 $11) 32... g6 33. Qxf3 Kg7) 32. Qxf3 $2 {[%emt 0:07:30] Weighted Error Value: White=0.18 (very precise) /Black=0.49} (32. Bc2 $1 $18 {[%csl Gc2][%cal Rf5h7]} g6 33. Qf6+ (33. Qxf3 Bxd5 34. Qf6+ Kg8 $15) 33... Kg8 34. d6) 1/2-1/2

[Event "FIDE WSTC-50-65 2022"]
[Site "Acqui Terme"]
[Date "2022.06.22"]
[Round "3.11"]
[White "Stebbings, Anthony J"]
[Black "Salov, Sergej"]
[Result "1/2-1/2"]
[ECO "E94"]
[WhiteElo "2297"]
[BlackElo "2169"]
[Annotator "TA"]
[PlyCount "39"]
[EventDate "2022.06.20"]
[EventType "team-tourn"]
[EventCountry "ITA"]
[SourceTitle "playchess.com"]
[Source "ChessBase"]
[SourceQuality "1"]
[TimeControl "40/5400+30:1800+30"]

{[%evp 18,39,74,57,91,60,66,68,72,70,75,61,67,50,50,0,50,12,72,43,86,74,93,85]} 1. d4 {[%emt 0:01:00] Solonar,S} Nf6 {[%emt 0:02:00]} 2. c4 {[%emt 0:00:00]} d6 {[%emt 0:00:30]} 3. Nc3 {[%emt 0:00:00]} e5 {[%emt 0:00:30]} 4. Nf3 {[%emt 0:00:00]} Nbd7 {[%emt 0:00:30]} 5. e4 {[%emt 0:00:00]} g6 {[%emt 0:00:00]} 6. Be2 {[%emt 0:00:30]} Bg7 {[%emt 0:00:00]} 7. O-O {[%emt 0:00:00]} O-O {[%emt 0:00:30]} 8. Be3 {[%emt 0:00:00]} Qe7 {[%emt 0:08:30]} 9. Qc2 {[%emt 0:01:30]} c6 {[%emt 0:02:30]} 10. d5 {[%emt 0:00:00]} c5 {[%emt 0:01:30] E94: King's Indian: Classical: 6 Be2 e5 7 0-0: Various Black 7th moves.} 11. Ne1 {[%emt 0:01:00] White is more active.} Ne8 {[%emt 0:02:30]} 12. g4 {[%emt 0:01:30]} Ndf6 {[%emt 0:02:30] White is slightly better.} 13. f3 {[%emt 0:09:30]} h5 {[%emt 0:03:30][%cal Rh5g4]} 14. h3 {[%emt 0:03:30]} Nh7 {[%emt 0:03:30]} 15. Bd3 {[%emt 0:05:30]} Bf6 {[%emt 0:09:30] [#]} 16. Ng2 $146 {[%emt 0:01:30]} ({White should try} 16. Qf2 $14) ({Predecessor:} 16. Qd2 Bg5 17. Kh2 Bxe3 18. Qxe3 Nef6 19. Rg1 hxg4 20. fxg4 Kg7 21. Be2 Rh8 22. Kg2 Bd7 23. Rh1 {½-½ (23) Wells,P (2530)-Solonar,S (2315) Bad Woerishofen 1998 EXT 2015 [Solonar,S]}) 16... Bg5 {[%emt 0:04:30]} ({Black should play} 16... Ng5 $11) 17. Bf2 {[%emt 0:00:30]} hxg4 {[%emt 0:02:30]} (17... Kg7 $11) 18. fxg4 $16 {[%emt 0:03:30]} ({Much weaker is} 18. hxg4 Kg7 $11) 18... Ng7 {[%emt 0:06:30]} 19. Bg3 {[%emt 0:02:30]} Bh6 {[%emt 0:04:30]} 20. Kh2 {[%emt 0:09:30] Weighted Error Value: White=0.16 (very precise) /Black=0.22 (precise)} 1/2-1/2